lending/lending_fUSD_20250114
["ID","MTS","AMOUNT","RATE_DAILY","PERIOD"]
[348859492,1736820636599,-500.0,9.884e-05,2]
[348859493,1736820636609,-500.0,9.884e-05,2]
[348859494,1736820636620,-500.0,9.884e-05,2]
[348859495,1736820636630,-500.0,9.884e-05,2]
[348859496,1736820636640,-500.0,9.884e-05,2]
[348859497,1736820636649,-809.04,9.884e-05,2]
[348859498,1736820636659,-500.0,9.884e-05,2]
[348859499,1736820636669,-500.0,9.884e-05,2]
[348859500,1736820636679,-259.49459888,9.884e-05,2]
[348859501,1736820636689,-500.0,9.884e-05,2]
[348859502,1736820636698,-500.0,9.884e-05,2]
[348859503,1736820636707,-500.0,9.884e-05,2]
[348859504,1736820636717,-500.0,9.884e-05,2]
[348859505,1736820636727,-500.0,9.884e-05,2]
[348859506,1736820636736,-500.0,9.884e-05,2]
[348859507,1736820636746,-500.0,9.884e-05,2]
[348859508,1736820636756,-500.0,9.884e-05,2]
[348859509,1736820636766,-500.0,9.884e-05,2]
[348859510,1736820636778,-500.0,9.884e-05,2]
[348859511,1736820636788,-500.0,9.884e-05,2]
[348859512,1736820636797,-500.0,9.884e-05,2]
[348859513,1736820636807,-500.0,9.884e-05,2]
[348859514,1736820636817,-500.0,9.884e-05,2]
[348859515,1736820636826,-500.0,9.884e-05,2]
[348859516,1736820636836,-864.93,9.884e-05,2]
[348859517,1736820636846,-361.9513696,9.884e-05,2]
[348859518,1736820636856,-500.0,9.884e-05,2]
[348859519,1736820636866,-848.18,9.884e-05,2]
[348859520,1736820636875,-500.0,9.884e-05,2]
[348859521,1736820636885,-500.0,9.884e-05,2]
[348859522,1736820636894,-500.0,9.884e-05,2]
[348859523,1736820636905,-500.0,9.884e-05,2]
[348859524,1736820636915,-500.0,9.884e-05,2]
[348859525,1736820636924,-500.0,9.884e-05,2]
[348859526,1736820636934,-500.0,9.884e-05,2]
[348859527,1736820636945,-500.0,9.884e-05,2]
[348859528,1736820636955,-500.0,9.884e-05,2]
[348859529,1736820636965,-500.0,9.884e-05,2]
[348859530,1736820636974,-671.33,9.884e-05,2]
[348859531,1736820636984,-500.0,9.884e-05,2]
[348859532,1736820636994,-500.0,9.884e-05,2]
[348859533,1736820637004,-382.98066145,9.884e-05,2]
[348859534,1736820637013,-500.0,9.884e-05,2]
[348859535,1736820637023,-500.0,9.884e-05,2]
[348859536,1736820637032,-450.0,9.884e-05,2]
[348859537,1736820637043,-500.0,9.884e-05,2]
[348859538,1736820637052,-500.0,9.884e-05,2]
[348859539,1736820637062,-500.0,9.884e-05,2]
[348859540,1736820637071,-505.51879169,9.884e-05,2]
[348859541,1736820637080,-500.0,9.884e-05,2]
[348859542,1736820637090,-500.0,9.884e-05,2]
[348859543,1736820637099,-500.0,9.884e-05,2]
[348859544,1736820637109,-500.0,9.884e-05,2]
[348859545,1736820637119,-500.0,9.884e-05,2]
[348859546,1736820637129,-662.93,9.884e-05,2]
[348859547,1736820637139,-500.0,9.884e-05,2]
[348859548,1736820637149,-500.0,9.884e-05,2]
[348859549,1736820637160,-500.0,9.884e-05,2]
[348859550,1736820637171,-500.0,9.884e-05,2]
[348859551,1736820637180,-502.58009796,9.884e-05,2]
[348859552,1736820637190,-500.0,9.884e-05,2]
[348859553,1736820637200,-299.4623868,9.884e-05,2]
[348859554,1736820637209,-500.0,9.884e-05,2]
[348859555,1736820637220,-640.39,9.884e-05,2]
[348859556,1736820637229,-500.0,9.884e-05,2]
[348859557,1736820637239,-500.0,9.884e-05,2]
[348859558,1736820637248,-500.0,9.884e-05,2]
[348859559,1736820637258,-500.0,9.884e-05,2]
[348859560,1736820637268,-500.0,9.884e-05,2]
[348859561,1736820637277,-570.72,9.884e-05,2]
[348859562,1736820637288,-503.793366,9.884e-05,2]
[348859563,1736820637299,-1142.94,9.884e-05,2]
[348859564,1736820637308,-500.0,9.884e-05,2]
[348859565,1736820637319,-721.03,9.884e-05,2]
[348859566,1736820637332,-504.7658322,9.884e-05,2]
[348859567,1736820637347,-371.47383528,9.884e-05,2]
[348859568,1736820637363,-570.0082477,9.884e-05,2]
[348859569,1736820637372,-246.02290443,9.884e-05,2]
[348859570,1736820637382,-500.0,9.884e-05,2]
[348859571,1736820637391,-500.0,9.884e-05,2]
[348859572,1736820637401,-500.0,9.884e-05,2]
[348859573,1736820637411,-500.0,9.884e-05,2]
[348859574,1736820637420,-500.0,9.884e-05,2]
[348859575,1736820637430,-500.0,9.884e-05,2]
[348859576,1736820637439,-500.0,9.884e-05,2]
[348859577,1736820637448,-500.0,9.884e-05,2]
[348859578,1736820637459,-500.0,9.884e-05,2]
[348859579,1736820637471,-856.02,9.884e-05,2]
[348859580,1736820637482,-503.62505719,9.884e-05,2]
[348859581,1736820637493,-383.71826278,9.884e-05,2]
[348859582,1736820637503,-1382.55,9.884e-05,2]
[348859583,1736820637513,-629.23,9.884e-05,2]
[348859584,1736820637523,-508.84420671,9.884e-05,2]
[348859585,1736820637532,-711.81,9.884e-05,2]
[348859586,1736820637543,-500.0,9.884e-05,2]
[348859587,1736820637552,-500.0,9.884e-05,2]
[348859588,1736820637561,-500.0,9.884e-05,2]
[348859589,1736820637571,-500.0,9.884e-05,2]
[348859590,1736820637581,-500.0,9.884e-05,2]
[348859591,1736820637591,-500.0,9.884e-05,2]
[348859592,1736820637601,-500.0,9.884e-05,2]
[348859593,1736820637610,-500.0,9.884e-05,2]
[348859594,1736820637620,-500.0,9.884e-05,2]
[348859595,1736820637630,-510.70462465,9.884e-05,2]
[348859596,1736820637639,-500.0,9.884e-05,2]
[348859597,1736820637648,-500.0,9.884e-05,2]
[348859598,1736820637658,-500.0,9.884e-05,2]
[348859599,1736820637667,-500.0,9.884e-05,2]
[348859600,1736820637676,-500.0,9.884e-05,2]
[348859601,1736820637685,-708.2,9.884e-05,2]
[348859602,1736820637695,-505.22605895,9.884e-05,2]
[348859603,1736820637705,-506.52932857,9.884e-05,2]
[348859604,1736820637714,-509.37480861,9.884e-05,2]
[348859605,1736820637723,-612.58101723,9.884e-05,2]
[348859606,1736820637732,-508.66803246,9.884e-05,2]
[348859607,1736820637741,-503.78733142,9.884e-05,2]
[348859608,1736820637751,-1499.7,9.884e-05,2]
[348859609,1736820637760,-500.0,9.884e-05,2]
[348859610,1736820637769,-500.0,9.884e-05,2]
[348859611,1736820637778,-500.0,9.884e-05,2]
[348859612,1736820637787,-500.0,9.884e-05,2]
[348859613,1736820637796,-504.18325155,9.884e-05,2]
[348859614,1736820637805,-500.0,9.884e-05,2]
[348859615,1736820637814,-500.0,9.884e-05,2]
[348859616,1736820637823,-500.0,9.884e-05,2]
[348859617,1736820637832,-500.0,9.884e-05,2]
[348859618,1736820637841,-1667.0,9.884e-05,2]
[348859619,1736820637850,-500.0,9.884e-05,2]
[348859620,1736820637859,-599.70400638,9.884e-05,2]
[348859621,1736820637869,-500.0,9.884e-05,2]
[348859622,1736820637879,-500.0,9.884e-05,2]
[348859623,1736820637888,-503.00779022,9.884e-05,2]
[348859624,1736820637898,-507.62517968,9.884e-05,2]
[348859625,1736820637906,-1581.02,9.884e-05,2]
[348859626,1736820637915,-500.0,9.884e-05,2]
[348859627,1736820637926,-500.0,9.884e-05,2]
[348859628,1736820637936,-500.0,9.884e-05,2]
[348859629,1736820637947,-538.14584302,9.884e-05,2]
[348859630,1736820637957,-500.0,9.884e-05,2]
[348859631,1736820637968,-500.0,9.884e-05,2]
[348859632,1736820637978,-500.0,9.884e-05,2]
[348859633,1736820637987,-500.0,9.884e-05,2]
[348859634,1736820637996,-500.0,9.884e-05,2]
[348859635,1736820638006,-500.0,9.884e-05,2]
[348859636,1736820638016,-500.0,9.884e-05,2]
[348859637,1736820638025,-500.0,9.884e-05,2]
[348859638,1736820638035,-520.2,9.884e-05,2]
[348859639,1736820638044,-500.0,9.884e-05,2]
[348859640,1736820638056,-3579.62,9.884e-05,2]
[348859641,1736820638066,-500.0,9.884e-05,2]
[348859642,1736820638077,-502.92872267,9.884e-05,2]
[348859643,1736820638087,-500.0,9.884e-05,2]
[348859644,1736820638099,-500.0,9.884e-05,2]
[348859645,1736820638108,-500.0,9.884e-05,2]
[348859646,1736820638119,-500.0,9.884e-05,2]
[348859647,1736820638130,-1567.61,9.884e-05,2]
[348859648,1736820638139,-1567.61,9.884e-05,2]
[348859649,1736820638150,-500.0,9.884e-05,2]
[348859650,1736820638160,-500.0,9.884e-05,2]
[348859651,1736820638169,-500.0,9.884e-05,2]
[348859652,1736820638180,-500.0,9.884e-05,2]
[348859653,1736820638191,-500.0,9.884e-05,2]
[348859654,1736820638201,-500.0,9.884e-05,2]
[348859655,1736820638211,-500.0,9.884e-05,2]
[348859656,1736820638221,-502.94254987,9.884e-05,2]
[348859657,1736820638233,-500.0,9.884e-05,2]
[348859658,1736820638242,-503.94920092,9.884e-05,2]
[348859659,1736820638253,-502.22429244,9.884e-05,2]
[348859660,1736820638265,-500.0,9.884e-05,2]
[348859661,1736820638275,-500.0,9.884e-05,2]
[348859662,1736820638286,-500.0,9.884e-05,2]
[348859663,1736820638296,-500.0,9.884e-05,2]
[348859664,1736820638305,-500.0,9.884e-05,2]
[348859665,1736820638315,-1087.73,9.884e-05,2]
[348859666,1736820638325,-500.0,9.884e-05,2]
[348859667,1736820638335,-505.87793152,9.884e-05,2]
[348859668,1736820638345,-500.0,9.884e-05,2]
[348859669,1736820638358,-500.0,9.884e-05,2]
[348859670,1736820638367,-500.0,9.884e-05,2]
[348859671,1736820638376,-500.0,9.885e-05,2]
[348859672,1736820638385,-902.94,9.885e-05,2]
[348859673,1736820638395,-1533.2,9.885e-05,2]
[348859674,1736820638405,-862.81,9.885e-05,2]
[348859675,1736820638414,-957.47,9.885e-05,2]
[348859676,1736820638423,-836.56,9.885e-05,2]
[348859677,1736820638433,-500.0,9.885e-05,2]
[348859678,1736820638443,-1106.92,9.885e-05,2]
[348859679,1736820638455,-500.0,9.885e-05,2]
[348859680,1736820638465,-1741.24,9.885e-05,2]
[348859681,1736820638485,-1427.38,9.885e-05,2]
[348859683,1736820638496,-2041.64,9.885e-05,2]
[348859684,1736820638505,-1568.0,9.885e-05,2]
[348859685,1736820638515,-1955.31,9.885e-05,2]
[348859686,1736820638525,-8218.72,9.885e-05,2]
[348859687,1736820638535,-1132.03,9.885e-05,2]
[348859688,1736820638551,-794.67,9.885e-05,2]
[348859689,1736820638560,-1973.83,9.885e-05,2]
[348859690,1736820638569,-500.0,9.885e-05,2]
[348859691,1736820638579,-638.36,9.885e-05,2]
[348859692,1736820638587,-1495.55,9.885e-05,2]
[348859693,1736820638597,-1000.0,9.885e-05,2]
[348859694,1736820638606,-874.63,9.885e-05,2]
[348859695,1736820638614,-500.0,9.885e-05,2]
[348859696,1736820638626,-1951.43,9.885e-05,2]
[348859697,1736820638635,-1632.6,9.885e-05,2]
[348859698,1736820638644,-3897.0,9.896e-05,2]
[348859699,1736820638653,-9661.395,9.896e-05,2]
[348859700,1736820638662,-1177.621,9.896e-05,2]
[348859701,1736820638671,-150.653,9.896e-05,2]
[348859702,1736820638680,-501.5778018,9.973e-05,2]
[348859703,1736820638689,-1587.43,9.997e-05,2]
[348859704,1736820638700,-2497.84,9.997e-05,2]
[348859705,1736820638710,-1302.44,9.997e-05,2]
[348859706,1736820638719,-1389.69,9.997e-05,2]
[348859707,1736820638729,-737.95,9.998e-05,2]
[348859708,1736820638738,-500.0,9.999e-05,2]
[348859709,1736820638747,-717.46,9.999e-05,2]
[348859710,1736820638756,-1394.89,9.999e-05,2]
[348859711,1736820638767,-755.09,9.999e-05,2]
[348859712,1736820638776,-500.0,9.999e-05,2]
[348859713,1736820638786,-891.97,9.999e-05,2]
[348859714,1736820638795,-988.0,0.0001,2]
[348859715,1736820638804,-267506.77351306,0.0001,2]
[348859716,1736820638822,-4833.67385281,0.0001,2]
[348859717,1736820638833,-3427.08347967,0.0001,2]
[348859720,1736820638878,-490.0,9.884e-05,2]
[348859722,1736820638888,-3410.94,9.884e-05,2]
[348859724,1736820638897,-7829.16420396,0.0001,2]
[348859726,1736820638909,-238443.99458255,0.0001,2]
[348859728,1736820638918,-172964.21056686,0.0001,2]
[348859730,1736820638927,-902.2103,0.0001,2]
[348859732,1736820638936,-7000.82270487,0.0001,2]
[348859733,1736820638946,-2000.0,0.0001,2]
[348859734,1736820638955,-200.0,0.0001,2]
[348859735,1736820638964,-200.0,0.0001,2]
[348859736,1736820638973,-200.0,0.0001,3]
[348859737,1736820638983,-200.0,0.0001,3]
[348859738,1736820638991,-200.0,0.0001,2]
[348859739,1736820639000,-200.0,0.0001,3]
[348859740,1736820639010,-200.0,0.0001,3]
[348859741,1736820639019,-200.0,0.0001,2]
[348859742,1736820639029,-200.0,0.0001,2]
[348859743,1736820639038,-314419.43692395,0.0001,2]
[348859744,1736820639049,-14865.50926112,0.0001,2]
[348859745,1736820639060,-2499.96256852,0.0001,2]
[348859766,1736820639873,-500.0,9.883e-05,2]
[348859767,1736820639883,-2764.13760739,0.0001,2]
[348859768,1736820639894,-1937.25,0.0001,2]
[348859769,1736820639927,-415.78309845,0.0001,2]
[348859770,1736820639939,-1762.3937577,0.0001,2]
[348859771,1736820639950,-976.2,0.0001,2]
[348859772,1736820639982,-4518.1242895,0.0001,2]
[348859773,1736820639994,-392.94026559,0.0001,2]
[348859786,1736820640797,-500.0,9.997e-05,2]
[348859787,1736820640808,-109585.76685547,0.0001,2]
[348859788,1736820640820,-1420.77470046,0.0001,2]
[348859789,1736820640831,-1057.51905768,0.0001,2]
[348859790,1736820640901,-1771.52402912,0.0001,2]
[348859791,1736820640916,-8556.56,0.0001,2]
[348859806,1736820643683,-4079.34492294,0.0001,2]
[348859807,1736820643695,-1817.67063,0.0001,2]
[348859808,1736820643706,-1765.7713395,0.0001,2]
[348859809,1736820643718,-681.95195016,0.0001,2]
[348859810,1736820643729,-541.34970936,0.0001,2]
[348859811,1736820643884,-74164.38696688,0.0001,2]
[348859816,1736820646632,-507.73175323,9.883e-05,2]
[348859817,1736820646643,-81.64657268,9.884e-05,2]
[348859818,1736820646655,-260.01800068,9.884e-05,2]
[348859819,1736820646667,-158.33542664,9.884e-05,2]
[348859820,1736820646677,-887.0,0.0001,2]
[348859821,1736820646686,-353775.86607855,0.0001,2]
[348859822,1736820646870,-302.40139359,0.0001,2]
[348859826,1736820699530,499.0,8.521e-05,2]
[348859827,1736820901706,151.01141,0.00023,120]
[348859829,1736821288317,151.0,0.00023,120]
[348859830,1736821365714,601.39,8.219e-05,2]
[348859831,1736821562903,1000.0,8.219e-05,2]
[348859832,1736821579652,2537.63159293,0.00023,120]
[348859835,1736821635901,365.26,8.227e-05,2]
[348859842,1736821674358,1122.25292697,0.00023,120]
[348859843,1736821680820,1558.234051,0.00023,120]
[348859844,1736821681403,165.5,8.219e-05,2]
[348859845,1736821688953,10000.0,0.00023,120]
[348859853,1736821817829,10000.0,0.00023,120]
[348859875,1736821831805,-498.92723845,8.862e-05,2]
[348859876,1736821831816,-269.24235348,8.862e-05,2]
[348859877,1736821831828,-517.45930807,8.862e-05,2]
[348859878,1736821831838,-64.22119975,8.862e-05,2]
[348859879,1736821831850,-343.15810025,8.862e-05,2]
[348859880,1736821831861,-49.99189975,8.919e-05,2]
[348859881,1736821831873,-250.00810025,8.919e-05,2]
[348859882,1736821831882,-158.13844959,8.92e-05,2]
[348859883,1736821831891,-4038.25346212,8.92e-05,2]
[348859884,1736821831903,-2100.0,8.92e-05,2]
[348859885,1736821831914,-1751.11653788,8.92e-05,2]
[348859886,1736821831923,-360.81504736,8.922e-05,2]
[348859887,1736821831935,-4090.01649661,8.922e-05,2]
[348859888,1736821831946,-920.76715178,8.922e-05,2]
[348859889,1736821831957,-2517.77130425,8.922e-05,2]
[348859890,1736821831966,-7889.37,8.925e-05,2]
[348859891,1736821831976,-7889.37,8.927e-05,2]
[348859892,1736821831985,-158.13844959,8.928e-05,2]
[348859893,1736821831994,-7889.37,8.929e-05,2]
[348859894,1736821832003,-250.0,8.93e-05,2]
[348859895,1736821832014,-7889.37,8.932e-05,2]
[348859896,1736821832024,-150.0,8.933e-05,2]
[348859897,1736821832033,-7889.37,8.934e-05,2]
[348859898,1736821832042,-158.13844959,8.936e-05,2]
[348859899,1736821832052,-7889.37,8.937e-05,2]
[348859900,1736821832061,-7889.37,8.939e-05,2]
[348859901,1736821832074,-7889.37,8.941e-05,2]
[348859902,1736821832083,-7889.37,8.944e-05,2]
[348859903,1736821832092,-7889.37,8.946e-05,2]
[348859904,1736821832101,-7889.37,8.948e-05,2]
[348859905,1736821832111,-648.38288735,8.951e-05,2]
[348859906,1736821832135,-1746.66141464,8.951e-05,2]
[348859907,1736821832148,-5494.32569801,8.951e-05,2]
[348859908,1736821832158,-7889.37,8.953e-05,2]
[348859909,1736821832167,-7889.37,8.955e-05,2]
[348859910,1736821832177,-7889.37,8.958e-05,2]
[348859911,1736821832187,-250.0,8.959e-05,2]
[348859912,1736821832197,-7889.37,8.96e-05,2]
[348859914,1736821832206,-7889.37,8.962e-05,2]
[348859915,1736821832215,-7889.37,8.965e-05,2]
[348859917,1736821832224,-1500.0,8.971e-05,2]
[348859919,1736821832234,-9122.0,9.2e-05,2]
[348859921,1736821832243,-345.71,9.2e-05,2]
[348859923,1736821832252,-176.32,9.2e-05,2]
[348859925,1736821832261,-638.07,9.228e-05,2]
[348859927,1736821832270,-1000.0,9.247e-05,2]
[348859928,1736821832279,-365.26,9.255e-05,2]
[348859930,1736821832289,-180.452,9.5e-05,2]
[348859931,1736821832298,-4619.0,9.603e-05,2]
[348859932,1736821832307,-527.2872,9.783e-05,2]
[348859933,1736821832317,-1000.0,9.783e-05,2]
[348859934,1736821832327,-386.9488,9.784e-05,2]
[348859935,1736821832336,-771.4654,9.784e-05,2]
[348859936,1736821832345,-1000.0,9.784e-05,2]
[348859938,1736821832355,-612.5432,9.784e-05,2]
[348859940,1736821832364,-5000.0,9.794e-05,2]
[348859941,1736821832373,-420.0,9.811e-05,2]
[348859942,1736821832382,-255.0,9.826e-05,2]
[348859943,1736821832391,-42488.66356211,9.882e-05,2]
[348859944,1736821832401,-500.0,9.882e-05,2]
[348859945,1736821832410,-2274.65,9.882e-05,2]
[348859946,1736821832419,-3150.21,9.882e-05,2]
[348859947,1736821832428,-1036.38,9.882e-05,2]
[348859948,1736821832438,-1830.81,9.882e-05,2]
[348859949,1736821832447,-500.0,9.882e-05,2]
[348859950,1736821832456,-1158.24,9.882e-05,2]
[348859951,1736821832466,-897.19,9.882e-05,2]
[348859952,1736821832475,-2858.56,9.882e-05,2]
[348859953,1736821832485,-500.0,9.882e-05,2]
[348859954,1736821832494,-500.0,9.882e-05,2]
[348859955,1736821832504,-500.0,9.882e-05,2]
[348859956,1736821832513,-500.0,9.882e-05,2]
[348859957,1736821832522,-500.0,9.882e-05,2]
[348859958,1736821832531,-834.52,9.882e-05,2]
[348859959,1736821832540,-502.17168665,9.882e-05,2]
[348859960,1736821832550,-1745.16,9.882e-05,2]
[348859961,1736821832560,-500.0,9.882e-05,2]
[348859962,1736821832570,-500.0,9.882e-05,2]
[348859963,1736821832580,-501.04824156,9.882e-05,2]
[348859964,1736821832590,-500.0,9.882e-05,2]
[348859965,1736821832600,-500.0,9.882e-05,2]
[348859966,1736821832610,-500.0,9.882e-05,2]
[348859967,1736821832619,-500.0,9.883e-05,2]
[348859968,1736821832628,-914.55,9.883e-05,2]
[348859969,1736821832638,-769.22,9.883e-05,2]
[348859970,1736821832648,-2470.83,9.883e-05,2]
[348859971,1736821832657,-1428.83,9.883e-05,2]
[348859972,1736821832667,-1000.17,9.883e-05,2]
[348859973,1736821832677,-2474.87,9.883e-05,2]
[348859974,1736821832686,-893.66,9.883e-05,2]
[348859975,1736821832696,-500.0,9.883e-05,2]
[348859976,1736821832707,-500.0,9.883e-05,2]
[348859977,1736821832716,-500.0,9.883e-05,2]
[348859978,1736821832726,-3022.83,9.883e-05,2]
[348859979,1736821832737,-986.67,9.883e-05,2]
[348859980,1736821832747,-500.0,9.883e-05,2]
[348859981,1736821832757,-500.0,9.883e-05,2]
[348859982,1736821832767,-500.0,9.883e-05,2]
[348859983,1736821832776,-500.0,9.883e-05,2]
[348859984,1736821832786,-739.43,9.883e-05,2]
[348859985,1736821832795,-500.0,9.883e-05,2]
[348859986,1736821832804,-883.57,9.883e-05,2]
[348859987,1736821832814,-500.0,9.883e-05,2]
[348859988,1736821832824,-500.0,9.883e-05,2]
[348859989,1736821832833,-500.0,9.883e-05,2]
[348859990,1736821832842,-500.0,9.883e-05,2]
[348859991,1736821832853,-500.0,9.883e-05,2]
[348859992,1736821832866,-504.9,9.883e-05,2]
[348859993,1736821832875,-1332.54,9.883e-05,2]
[348859994,1736821832885,-500.0,9.883e-05,2]
[348859995,1736821832895,-542.37,9.883e-05,2]
[348859996,1736821832905,-500.0,9.883e-05,2]
[348859997,1736821832914,-500.0,9.883e-05,2]
[348859998,1736821832924,-1256.77,9.883e-05,2]
[348859999,1736821832934,-500.0,9.883e-05,2]
[348860000,1736821832944,-500.0,9.883e-05,2]
[348860001,1736821832953,-14.56869427,9.883e-05,2]
[348860002,1736821832966,-959.63130573,9.883e-05,2]
[348860003,1736821832976,-541.25477481,9.883e-05,2]
[348860004,1736821832987,-500.0,9.883e-05,2]
[348860005,1736821832996,-1583.06,9.883e-05,2]
[348860006,1736821833006,-520.53,9.883e-05,2]
[348860007,1736821833015,-500.0,9.883e-05,2]
[348860008,1736821833024,-500.0,9.883e-05,2]
[348860009,1736821833034,-500.0,9.883e-05,2]
[348860010,1736821833044,-500.0,9.883e-05,2]
[348860011,1736821833053,-500.0,9.883e-05,2]
[348860012,1736821833064,-822.53,9.883e-05,2]
[348860013,1736821833075,-500.0,9.883e-05,2]
[348860014,1736821833084,-1016.0,9.883e-05,2]
[348860015,1736821833094,-636.84806942,9.883e-05,2]
[348860016,1736821833104,-500.0,9.883e-05,2]
[348860017,1736821833114,-500.0,9.883e-05,2]
[348860018,1736821833124,-500.0,9.883e-05,2]
[348860019,1736821833134,-500.0,9.883e-05,2]
[348860020,1736821833144,-500.0,9.883e-05,2]
[348860021,1736821833154,-500.0,9.883e-05,2]
[348860022,1736821833163,-500.0,9.883e-05,2]
[348860023,1736821833173,-523.75536882,9.883e-05,2]
[348860024,1736821833182,-500.0,9.883e-05,2]
[348860025,1736821833192,-2302.61,9.883e-05,2]
[348860026,1736821833202,-555.89,9.883e-05,2]
[348860027,1736821833212,-500.0,9.883e-05,2]
[348860028,1736821833222,-1100.9,9.883e-05,2]
[348860029,1736821833232,-670.23,9.883e-05,2]
[348860030,1736821833243,-500.0,9.883e-05,2]
[348860031,1736821833252,-1272.39,9.883e-05,2]
[348860032,1736821833262,-500.0,9.883e-05,2]
[348860033,1736821833271,-500.0,9.883e-05,2]
[348860034,1736821833281,-500.0,9.883e-05,2]
[348860035,1736821833290,-726.99,9.883e-05,2]
[348860036,1736821833300,-500.0,9.883e-05,2]
[348860037,1736821833310,-2856.53,9.883e-05,2]
[348860038,1736821833319,-1715.37,9.883e-05,2]
[348860039,1736821833329,-502.84488043,9.883e-05,2]
[348860040,1736821833339,-500.0,9.883e-05,2]
[348860041,1736821833349,-2188.63,9.883e-05,2]
[348860042,1736821833359,-501.02905734,9.883e-05,2]
[348860043,1736821833368,-500.0,9.883e-05,2]
[348860044,1736821833378,-500.0,9.883e-05,2]
[348860045,1736821833388,-500.0,9.883e-05,2]
[348860046,1736821833397,-500.0,9.883e-05,2]
[348860047,1736821833407,-500.0,9.883e-05,2]
[348860048,1736821833417,-500.77592828,9.883e-05,2]
[348860049,1736821833427,-663.85,9.883e-05,2]
[348860050,1736821833437,-1402.52,9.883e-05,2]
[348860051,1736821833446,-785.45,9.883e-05,2]
[348860052,1736821833457,-690.87,9.883e-05,2]
[348860053,1736821833467,-2005.74,9.883e-05,2]
[348860054,1736821833477,-500.0,9.883e-05,2]
[348860055,1736821833487,-606.03,9.883e-05,2]
[348860056,1736821833496,-1769.26,9.883e-05,2]
[348860057,1736821833507,-500.0,9.883e-05,2]
[348860058,1736821833516,-984.3,9.883e-05,2]
[348860059,1736821833526,-500.0,9.883e-05,2]
[348860060,1736821833536,-500.0,9.883e-05,2]
[348860061,1736821833545,-500.0,9.883e-05,2]
[348860062,1736821833555,-500.0,9.883e-05,2]
[348860063,1736821833564,-500.0,9.883e-05,2]
[348860064,1736821833575,-1560.08,9.883e-05,2]
[348860065,1736821833585,-500.0,9.883e-05,2]
[348860066,1736821833594,-500.0,9.883e-05,2]
[348860067,1736821833604,-4073.34,9.883e-05,2]
[348860068,1736821833613,-500.0,9.883e-05,2]
[348860069,1736821833622,-500.0,9.883e-05,2]
[348860070,1736821833631,-2024.5,9.883e-05,2]
[348860071,1736821833641,-634.38,9.883e-05,2]
[348860072,1736821833651,-500.0,9.883e-05,2]
[348860073,1736821833661,-3613.3,9.883e-05,2]
[348860074,1736821833670,-1486.97,9.883e-05,2]
[348860075,1736821833680,-500.0,9.883e-05,2]
[348860076,1736821833690,-1577.84,9.883e-05,2]
[348860077,1736821833700,-500.0,9.883e-05,2]
[348860078,1736821833710,-8476.14,9.883e-05,2]
[348860079,1736821833720,-500.0,9.883e-05,2]
[348860080,1736821833730,-500.0,9.883e-05,2]
[348860081,1736821833739,-500.0,9.883e-05,2]
[348860082,1736821833749,-2575.36,9.883e-05,2]
[348860083,1736821833759,-1493.68,9.883e-05,2]
[348860084,1736821833768,-1080.3,9.883e-05,2]
[348860085,1736821833778,-981.48,9.883e-05,2]
[348860086,1736821833788,-1063.44836007,9.883e-05,3]
[348860087,1736821833797,-500.0,9.883e-05,2]
[348860088,1736821833807,-579.89,9.883e-05,2]
[348860089,1736821833816,-1582.89,9.883e-05,2]
[348860090,1736821833827,-500.0,9.883e-05,2]
[348860091,1736821833838,-1490.06,9.883e-05,2]
[348860092,1736821833848,-635.44,9.883e-05,2]
[348860093,1736821833860,-1295.11,9.883e-05,2]
[348860094,1736821833870,-500.0,9.883e-05,2]
[348860095,1736821833880,-544.93,9.883e-05,2]
[348860096,1736821833891,-500.0,9.883e-05,2]
[348860097,1736821833901,-1389.92,9.883e-05,2]
[348860098,1736821833911,-744.39,9.883e-05,2]
[348860099,1736821833922,-756.23,9.883e-05,2]
[348860100,1736821833932,-1091.99,9.883e-05,2]